bitfinex/quotes_ETHUSD_20240715
["timestamp","ask_amount","ask_price","bid_price","bid_amount"]
[1721033558000,2.68408,3353.1,3351.6,1.7]
[1721033558198,2.68412,3353.1,3351.7,0.05966096]
[1721033558397,2.4663,3353.2,3352.0,2.6849]
[1721033558562,2.4663,3353.2,3352.1,0.05965706]
[1721033558758,0.513716,3353.4,3352.1,0.05965706]
[1721033558759,0.513716,3353.4,3352.3,2.68471]
[1721033561609,2.4663,3354.3,3353.2,1.7]
[1721033561763,5.14944,3354.3,3353.3,0.55]
[1721033561959,2.68339,3354.0,3353.3,0.03635802]
[1721033562369,2.4663,3354.3,3352.6,3.761926]
[1721033562370,2.68353,3353.8,3352.6,3.0]
[1721033562562,2.68345,3353.9,3352.4,3.0]
[1721033562903,2.68386,3353.4,3352.5,0.6228924]
[1721033563261,0.268345,3353.8,3352.5,0.6228924]
[1721033563262,2.68377,3353.5,3352.5,0.6228924]
[1721033564084,2.68385,3353.4,3352.5,0.6228924]
[1721033564283,2.68385,3353.4,3352.5,0.03681683]
[1721033564482,2.68385,3353.4,3352.2,2.86073571]
[1721033564683,2.68385,3353.4,3352.6,0.03678724]
[1721033564891,2.3987,3353.3,3351.9,5.67496]
[1721033565078,2.3987,3353.3,3352.7,0.0367365]
[1721033565281,2.3987,3353.3,3352.0,2.6849]
[1721033565282,2.68409,3353.1,3352.0,2.6849]
[1721033565588,2.6843,3352.9,3352.8,0.03669029]
[1721033565797,2.68409,3353.1,3351.9,2.99]
[1721033565798,2.68433,3352.8,3351.9,2.99]
[1721033565980,2.68433,3352.8,3351.5,2.68534]
[1721033566305,2.68433,3352.8,3351.7,2.6852]
[1721033566470,3.22118,3352.8,3351.7,3.222254]
[1721033566669,3.22118,3352.8,3351.8,0.03721524]
[1721033566878,2.68441,3352.7,3351.8,0.03721524]
[1721033567098,2.68465,3352.4,3351.8,0.03721524]
[1721033567272,2.68477,3352.3,3351.3,1.7]
[1721033567472,0.767422,3352.2,3351.3,1.7]
[1721033567706,0.767422,3352.2,3351.4,0.03741835]
[1721033567889,0.23987,3353.2,3351.7,1.7]
[1721033568092,2.68413,3353.1,3352.0,2.68494]
[1721033568298,2.68413,3353.1,3351.8,2.72231229]
[1721033568593,2.68417,3353.0,3352.1,0.03709999]
[1721033568781,2.68417,3353.0,3351.7,1.7]
[1721033568782,0.560811,3352.9,3351.9,2.72222152]
[1721033568984,0.560811,3352.9,3352.0,3.23495]
[1721033569203,0.23987,3353.2,3352.0,3.23495]
[1721033569399,0.23987,3353.2,3351.5,2.3424]
[1721033569400,2.68437,3352.8,3352.1,0.03709999]
[1721033569574,2.92393,3353.2,3352.1,0.03709999]
[1721033569907,7.34,3354.0,3352.2,0.03704923]
[1721033569908,5.15253,3353.8,3352.2,0.03704923]
[1721033570074,5.15253,3353.8,3351.9,1.7]
[1721033570275,2.68374,3353.6,3352.4,2.68463]
[1721033570476,2.68361,3353.7,3352.5,2.6845]
[1721033570671,5.15254,3353.8,3352.6,0.55]
[1721033570907,5.15254,3353.8,3352.5,0.03689696]
[1721033570908,2.68393,3353.3,3352.5,0.03689696]
[1721033571216,2.68384,3353.4,3352.7,0.03679547]
[1721033571382,3.138,3353.6,3351.9,1.7]
[1721033571383,2.68369,3353.6,3352.6,0.03684621]
[1721033571577,1.249254,3353.7,3352.4,2.68456]
[1721033571773,10.02336,3354.0,3352.7,0.03679547]
[1721033571774,7.34,3354.0,3352.7,0.03679547]
[1721033571997,7.34,3354.0,3352.9,2.68422]
[1721033572343,2.4662,3354.3,3352.7,1.7]
[1721033572344,2.68362,3353.7,3353.0,0.03660318]
[1721033572636,5.14932,3354.3,3352.9,2.68422]
[1721033572790,2.6832,3354.2,3353.1,0.03655244]
[1721033572975,1.24894,3354.1,3353.0,3.27075318]
[1721033573171,1.24894,3354.1,3353.2,0.03649037]
[1721033573408,1.24894,3354.1,3353.1,11.57746426]
[1721033573409,3.93223,3354.1,3353.1,11.61400537]
[1721033573721,1.24894,3354.1,3353.2,0.03649037]
[1721033573878,5.14937,3354.3,3353.2,0.03649037]
[1721033574204,5.14937,3354.3,3353.2,0.55]
[1721033574417,2.68328,3354.1,3353.3,0.0364404]
[1721033574718,2.68359,3353.8,3352.6,5.68442]
[1721033574880,2.68359,3353.8,3353.4,0.03638967]
[1721033575079,2.68359,3353.8,3352.7,4.482555]
[1721033575080,2.68361,3353.7,3352.7,4.482555]
[1721033575614,2.4662,3354.3,3352.8,0.03668726]
[1721033575821,1.03161668,3354.2,3352.8,0.03668726]
[1721033576132,7.34,3354.4,3352.8,0.03668726]
[1721033576133,7.34,3354.4,3353.2,4.38399]
[1721033576311,7.34,3354.4,3353.3,0.76644796]
[1721033576477,2.68297,3354.5,3353.3,0.80289214]
[1721033576677,2.68305,3354.4,3353.3,0.80289214]
[1721033577492,2.68288,3354.6,3353.3,3.48680214]
[1721033577711,12.31683,3354.8,3353.4,0.55]
[1721033577917,2.68304,3354.4,3353.5,0.56771682]
[1721033578076,2.68293,3354.6,3353.5,0.60405955]
[1721033578584,2.68304,3354.4,3353.5,0.60405955]
[1721033578922,2.6829,3354.6,3353.5,0.60405955]
[1721033579482,2.6829,3354.6,3353.6,0.55]
[1721033579697,2.68297,3354.5,3353.6,1.5349113]
[1721033579920,2.68304,3354.4,3353.6,0.03626934]
[1721033580095,2.68321,3354.2,3353.1,2.68402]
[1721033580427,1.231683,3354.7,3353.3,1.7]
[1721033580627,2.2941,3354.8,3353.4,0.55]
[1721033580828,2.2941,3354.8,3353.4,0.58635415]
[1721033581043,2.6828,3354.7,3353.4,3.23377]
[1721033581329,2.6828,3354.7,3353.5,2.72002343]
[1721033581499,2.6828,3354.7,3353.6,0.55]
[1721033581699,2.68289,3354.6,3353.6,1.31537934]
[1721033582025,2.68289,3354.6,3353.7,0.036202]
[1721033582621,0.536545,3354.7,3353.8,0.03615129]
[1721033582819,2.68286,3354.7,3353.8,0.03615129]
[1721033582997,2.68256,3355.0,3353.9,0.03610058]
[1721033583197,2.68266,3354.9,3353.9,0.03610058]
[1721033583400,7.34,3355.2,3353.9,0.03610058]
[1721033583401,10.02242,3355.2,3353.9,2.77913328]
[1721033583599,10.02242,3355.2,3354.2,1.7]
[1721033583600,2.68242,3355.2,3354.2,1.7]
[1721033583921,2.68242,3355.2,3354.3,0.47421595]
[1721033584437,7.34,3355.6,3354.3,0.47421595]
[1721033584438,2.68216,3355.5,3354.3,3.21694347]
[1721033584733,2.68216,3355.5,3354.4,2.68303]
[1721033585234,7.34,3355.6,3354.6,1.7]
[1721033585607,7.34,3355.6,3354.7,0.03553788]
[1721033585927,7.34,3356.0,3355.0,1.7]
[1721033586135,2.68177,3356.0,3355.0,1.7]
[1721033586302,2.68177,3356.0,3355.1,0.03532082]
[1721033586651,7.34,3356.4,3355.1,0.03532082]
[1721033586806,7.34,3356.4,3355.2,3.13008157]
[1721033586807,11.32717372,3356.4,3355.2,3.13008157]
[1721033587208,2.68152,3356.3,3355.3,0.03518928]
[1721033587415,2.68152,3356.3,3355.2,3.13008157]
[1721033587647,8.64567372,3356.4,3355.3,2.6823]
[1721033587850,8.64567372,3356.4,3355.3,2.71748777]
[1721033588027,8.64567372,3356.4,3355.3,3.40750197]
[1721033588028,11.32713372,3356.4,3355.3,3.40750197]
[1721033588215,8.64567372,3356.4,3355.3,3.40750197]
[1721033588558,8.64567372,3356.4,3355.4,3.23223]
[1721033588735,8.64567372,3356.4,3355.4,3.2673671]
[1721033588904,7.34,3356.4,3355.5,2.4469]
[1721033589110,7.34,3356.4,3355.8,2.6819]
[1721033589410,2.68089,3357.1,3355.9,1.7]
[1721033589632,2.68089,3357.1,3355.9,4.93178]
[1721033589836,2.68089,3357.1,3356.0,2.71655903]
[1721033590063,2.68089,3357.1,3356.1,0.988328]
[1721033590230,2.68089,3357.1,3356.2,0.03470774]
[1721033590557,2.6808,3357.2,3356.2,0.03470774]
[1721033590981,7.36,3357.5,3356.3,1.7]
[1721033591111,2.68065,3357.4,3356.4,0.55]
[1721033591456,3.952756,3357.4,3356.4,0.58456044]
[1721033591845,3.952756,3357.4,3356.4,3.26598044]
[1721033592013,3.952756,3357.4,3356.4,0.58456044]
[1721033592213,7.36,3357.5,3356.4,0.03456044]
[1721033592419,2.68066,3357.4,3356.4,0.03456044]
[1721033592637,2.68114,3356.8,3355.5,6.82905]
[1721033592944,2.68114,3356.8,3355.6,3.03494748]
[1721033593138,2.68114,3356.8,3355.7,1.7]
[1721033593449,2.68096,3357.0,3355.8,0.9397641]
[1721033593654,2.68096,3357.0,3355.9,0.03479553]
[1721033593655,2.68107,3356.9,3355.9,0.03479553]
[1721033593960,2.68084,3357.2,3355.9,2.71662553]
[1721033594135,2.68081,3357.2,3355.9,0.58479553]
[1721033594469,2.68081,3357.2,3356.1,2.68166]
[1721033594623,2.68088,3357.2,3356.2,0.99774157]
[1721033594809,5.81887,3357.2,3356.2,0.03465643]
[1721033595010,2.6814,3356.5,3356.2,0.03465643]
[1721033595214,2.68154,3356.3,3355.3,1.7]
[1721033595444,2.68154,3356.3,3355.4,0.03506163]
[1721033595642,2.68161,3356.2,3355.4,0.03506163]
[1721033595845,2.68161,3356.2,3355.0,5.04105]
[1721033595846,0.268161,3356.1,3355.0,5.04105]
[1721033596063,2.68161,3356.2,3355.5,0.03488943]
[1721033596249,2.68161,3356.2,3355.0,2.3585]
[1721033596250,2.68161,3356.2,3355.0,5.04102]
[1721033596555,2.68177,3356.0,3355.0,2.3585]
[1721033596849,2.68186,3355.9,3355.1,0.0350921]
[1721033597228,2.68186,3355.9,3354.9,1.7]
[1721033597430,5.81934,3356.6,3354.9,1.7]
[1721033597431,2.68177,3356.0,3355.2,0.03504143]
[1721033597776,2.68176,3356.0,3355.3,0.03499076]
[1721033598071,2.68169,3356.1,3355.3,0.03499076]
[1721033598218,2.68169,3356.1,3354.7,1.7]
[1721033598431,2.68185,3355.9,3354.6,4.7]
[1721033598643,3.138,3356.6,3354.6,4.7]
[1721033598644,7.34,3356.3,3354.8,0.03524412]
[1721033598837,7.34,3356.3,3354.8,2.74232482]
[1721033598838,2.68168,3356.1,3354.8,2.74232482]
[1721033599038,2.68168,3356.1,3354.9,3.26777345]
[1721033599251,7.34,3356.3,3354.9,0.03519345]
[1721033599663,2.68182,3356.0,3354.9,0.03519345]
[1721033599863,2.68187,3355.9,3354.9,0.03519345]
[1721033600038,2.68208,3355.6,3354.9,0.03519345]
[1721033600237,2.6823,3355.4,3354.4,8.942]
[1721033600453,2.68233,3355.3,3355.0,0.03514277]
[1721033600660,2.68233,3355.3,3354.4,8.942]
[1721033600844,2.68233,3355.3,3355.1,0.0350921]
[1721033601046,2.3483,3355.9,3354.2,2.3023]
[1721033601047,2.6824,3355.2,3354.2,2.3023]
[1721033601968,2.68253,3355.1,3353.9,2.99]
[1721033602171,7.34,3355.6,3353.9,2.99]
[1721033602172,2.6827,3354.9,3353.9,2.99]
[1721033602594,10.02208,3355.6,3354.0,0.05962253]
[1721033602595,2.68249,3355.1,3354.0,0.05962253]
[1721033602799,2.68249,3355.1,3354.1,0.47496225]
[1721033602945,2.68249,3355.1,3354.2,1.75961757]
[1721033603146,2.68237,3355.3,3354.3,0.05961755]
[1721033603375,2.68266,3354.9,3353.9,2.99]
[1721033603694,10.02209,3355.6,3353.9,2.99]
[1721033603695,2.68272,3354.8,3353.9,2.99]
[1721033603851,2.68272,3354.8,3353.9,3.957596]
[1721033604273,2.68272,3354.8,3353.9,2.99]
[1721033605051,2.68282,3354.7,3353.9,2.99]
[1721033605682,2.68289,3354.6,3353.9,2.99]
[1721033605887,2.68289,3354.6,3353.5,1.7]
[1721033606096,2.3467,3354.9,3353.5,1.7]
[1721033606097,2.68281,3354.7,3353.5,4.3837]
[1721033606286,2.68281,3354.7,3353.6,1.006762]
[1721033606474,2.3467,3354.9,3353.6,1.006762]
[1721033606475,2.68264,3354.9,3354.0,1.7]
[1721033606678,2.68273,3354.8,3354.0,1.7]
[1721033607787,10.02256,3355.0,3354.0,1.7]
[1721033607956,7.34,3355.0,3354.0,1.7]
[1721033608156,10.02258,3355.0,3354.1,1.256689]
[1721033608386,10.02258,3355.0,3354.0,1.7]
[1721033608387,2.68274,3354.8,3354.0,1.7]
[1721033608765,7.34,3355.0,3354.0,1.7]
[1721033608963,10.02256,3355.0,3354.1,0.55]
[1721033609171,2.68232,3355.3,3354.1,3.26913562]
[1721033609369,2.68241,3355.2,3354.1,3.26913562]
[1721033609555,2.68248,3355.1,3354.2,0.49691356]
[1721033609994,2.68235,3355.3,3354.3,0.09536729]
[1721033610165,2.68225,3355.4,3354.4,1.7]
[1721033610488,2.68214,3355.6,3354.5,0.09525525]
[1721033610791,2.68222,3355.5,3354.5,0.09525525]
[1721033610955,2.68202,3355.7,3354.6,3.23288]
[1721033611157,7.34,3355.8,3354.8,1.7]
[1721033611471,2.68202,3355.7,3354.9,0.03543046]
[1721033611668,2.68185,3355.9,3354.9,0.03543046]
[1721033611971,2.6817,3356.1,3355.3,1.7]
[1721033612169,10.02154,3356.3,3355.3,1.7]
[1721033612372,7.34,3356.3,3355.4,0.09477753]
[1721033612575,7.34,3356.3,3355.4,0.03517711]
[1721033613265,2.68161,3356.2,3355.4,0.03517711]
[1721033614116,2.68198,3355.8,3355.4,0.03517711]
[1721033614396,2.4093,3355.8,3355.4,0.03517711]
[1721033614612,2.92294,3355.7,3354.6,4.7]
[1721033614759,2.68232,3355.4,3354.6,1.7]
[1721033614959,0.24093,3355.7,3354.7,0.03547067]
[1721033615262,2.92293,3355.7,3354.6,1.75960794]
[1721033615575,2.92293,3355.7,3354.7,0.03548954]
[1721033616281,2.92293,3355.7,3354.8,0.03543886]
[1721033616482,2.92293,3355.7,3354.9,1.7]
[1721033616800,9.8005,3356.3,3355.0,0.09495716]
[1721033617091,2.68168,3356.1,3355.1,0.55]
[1721033617307,9.8005,3356.3,3355.2,0.05959963]
[1721033617519,2.68168,3356.1,3355.2,0.03519688]
[1721033617719,1.248196,3356.2,3355.2,0.03519688]
[1721033617720,2.68201,3355.7,3355.2,0.03519688]
[1721033617876,2.68216,3355.5,3355.2,0.03519688]
[1721033618180,0.268216,3355.4,3354.5,2.68292]
[1721033618379,2.68219,3355.5,3355.3,0.03514621]
[1721033618664,2.68194,3355.8,3354.7,4.38278]
[1721033618780,2.68186,3355.9,3354.7,4.38278]
[1721033618781,2.68208,3355.7,3355.4,0.03508498]
[1721033618977,2.68208,3355.7,3354.7,1.7]
[1721033619386,2.68208,3355.7,3354.8,0.03538901]
[1721033619606,3.218474,3355.7,3354.8,0.03538901]
[1721033619809,2.68211,3355.6,3354.8,0.03538901]
[1721033620005,2.68216,3355.5,3354.8,0.03538901]
[1721033620214,2.68233,3355.3,3354.8,0.03538901]
[1721033620531,2.68257,3355.0,3354.1,2.99]
[1721033620986,2.68257,3355.0,3354.2,0.03571051]
[1721033621810,2.68279,3354.8,3354.2,0.03571051]
[1721033622008,2.68256,3355.0,3354.2,0.03571051]
[1721033622621,2.68277,3354.8,3354.2,0.03571051]
[1721033622919,5.08209,3355.4,3354.2,0.03571051]
[1721033622920,2.68242,3355.2,3354.2,0.03571051]
[1721033623123,3.190772,3355.1,3354.2,0.03571051]
[1721033623306,2.68257,3355.0,3354.2,0.03571051]
[1721033623804,5.08205,3355.4,3354.2,1.73571051]
[1721033624186,5.08205,3355.4,3354.2,4.38314]
[1721033624384,2.68225,3355.4,3354.4,2.499]
[1721033624619,2.68225,3355.4,3354.4,3.809524]
[1721033624785,2.68233,3355.3,3354.5,0.03560147]
[1721033624988,7.34,3355.5,3354.5,0.03560147]
[1721033624989,10.02223,3355.5,3354.5,0.03560147]
[1721033625322,2.68224,3355.4,3354.5,0.03560147]
[1721033625529,2.68234,3355.3,3354.5,0.03560147]
[1721033625689,7.34,3355.5,3354.5,0.03560147]
[1721033625690,10.02222,3355.5,3354.5,0.03560147]
[1721033626021,11.40797064,3355.5,3354.6,1.7]
[1721033626192,3.218404,3355.7,3354.6,1.7]
[1721033626391,2.68201,3355.7,3355.0,1.7]
[1721033626721,2.68201,3355.7,3355.1,0.03527775]
[1721033627091,2.68218,3355.5,3355.1,0.03527775]
[1721033627285,2.4733,3355.6,3354.4,1.7]
[1721033627505,2.68224,3355.4,3354.5,0.03555517]
[1721033627699,2.68201,3355.7,3354.5,2.71845517]
[1721033627917,2.68201,3355.7,3354.8,1.7]
[1721033628310,2.68201,3355.7,3354.9,0.03535546]
[1721033628522,2.68208,3355.6,3354.9,0.03535546]
[1721033629237,2.6824,3355.2,3354.9,0.03535546]
[1721033629615,2.6824,3355.2,3354.4,1.7]
[1721033629810,2.6824,3355.2,3355.0,0.03530026]
[1721033630014,2.6824,3355.2,3354.1,4.7]
[1721033630255,2.6824,3355.2,3354.2,0.55]
[1721033630409,2.6824,3355.2,3354.3,1.026744]
[1721033630740,2.6824,3355.2,3354.4,0.03561871]
[1721033631042,2.68264,3354.9,3354.4,0.03561871]
[1721033631336,2.68254,3355.1,3354.1,4.75961981]
[1721033631657,2.68249,3355.1,3354.5,0.03556801]
[1721033631850,2.68249,3355.1,3354.1,4.7]
[1721033632007,2.68249,3355.1,3354.6,0.03551733]
[1721033632008,2.68265,3354.9,3354.6,0.03551733]
[1721033632209,2.68272,3354.8,3354.1,1.7]
[1721033632405,3.219241,3354.8,3354.7,0.03546664]
[1721033632642,3.219241,3354.8,3354.1,1.7]
[1721033632844,2.68272,3354.8,3353.7,1.7]
[1721033633015,2.68289,3354.6,3353.7,1.7]
[1721033633220,2.68289,3354.6,3353.8,0.03592292]
[1721033635447,2.68272,3354.8,3353.8,0.03592292]
[1721033636147,2.68281,3354.7,3353.8,0.03592292]
[1721033636383,2.68281,3354.7,3353.9,0.44195829]
[1721033636852,2.68281,3354.7,3354.0,0.0358215]
[1721033637773,2.68289,3354.6,3354.0,0.0358215]
[1721033639046,3.30037978,3355.0,3354.0,2.7191715]
[1721033639248,3.30037978,3355.0,3354.0,0.0358215]
[1721033639249,2.68261,3355.0,3354.0,0.0358215]
[1721033639591,0.69095145,3355.0,3354.1,4.38325]
[1721033639892,0.61776978,3355.1,3354.2,0.60961601]
[1721033640056,0.7236258,3355.1,3354.2,3.32857124]
[1721033640253,0.61776978,3355.3,3354.3,5.04312]
[1721033640438,3.29993978,3355.5,3354.5,1.7]
[1721033640779,2.78806209,3355.4,3354.6,0.0356004]
[1721033640987,2.68243,3355.2,3354.6,0.0356004]
[1721033641194,2.68225,3355.4,3354.6,0.0356004]
[1721033641391,2.68253,3355.1,3354.6,0.0356004]
[1721033641577,2.68253,3355.1,3354.3,2.36]
[1721033641783,2.68253,3355.1,3354.7,0.03552857]
[1721033641992,2.68232,3355.3,3354.5,1.7]
[1721033641993,0.61776978,3355.3,3354.5,1.7]
[1721033642193,2.68233,3355.3,3354.8,0.03547789]
[1721033642501,3.37322445,3355.3,3354.1,4.38322]
[1721033642668,3.37322445,3355.3,3354.2,0.58578127]
[1721033642669,2.68253,3355.1,3354.2,0.58578127]
[1721033643179,2.68256,3355.0,3354.2,0.03578127]
[1721033643800,0.61899594,3355.2,3354.3,1.7]
[1721033644000,3.30132594,3355.3,3354.3,1.7]
[1721033644316,2.68242,3355.2,3354.4,0.03567988]
[1721033644480,2.6825,3355.1,3354.4,0.03567988]
[1721033644674,0.61899594,3355.2,3354.4,0.03567988]
[1721033644903,0.61899594,3355.3,3354.4,3.26863988]
[1721033645223,0.61899594,3355.4,3354.5,2.2658]
[1721033645510,0.92849391,3355.5,3354.6,0.03557775]
[1721033645511,0.72488688,3355.3,3354.6,0.03557775]
[1721033645719,0.61899594,3355.3,3354.6,0.03557775]
[1721033645889,0.61899594,3355.4,3354.6,0.03557775]
[1721033646301,0.72488169,3355.4,3354.6,1.02731553]
[1721033646601,0.10588575,3355.3,3354.6,3.76979417]
[1721033646805,0.61899594,3355.4,3354.6,3.76979417]
[1721033647005,0.61899594,3355.4,3354.6,3.71018553]
[1721033647538,7.95899594,3355.7,3355.0,1.7]
[1721033647828,7.34,3355.7,3355.0,2.19923474]
[1721033647977,7.34,3355.7,3355.1,0.03532435]
[1721033648577,7.34,3355.7,3355.1,0.58532435]
[1721033648828,7.34,3355.7,3355.1,1.40029826]
[1721033650172,7.34,3355.7,3355.4,1.7]
[1721033650341,0.61899594,3355.9,3355.4,1.7]
[1721033650521,0.92849391,3356.1,3355.5,0.03499558]
[1721033650522,0.61899594,3356.0,3355.5,0.03499558]
[1721033650722,0.7247192,3356.0,3355.5,0.03499558]
[1721033650957,0.7247192,3356.0,3355.4,1.7]
[1721033651129,0.61899594,3356.1,3355.4,2.00649739]
[1721033651317,0.72472987,3356.1,3355.4,2.00649739]
[1721033651516,7.95899594,3356.2,3355.5,0.03499181]
[1721033652617,7.34,3356.2,3355.5,0.03499181]
[1721033653016,0.10571747,3356.1,3355.5,0.03499181]
[1721033653323,10.64060594,3356.2,3355.5,0.03499181]
[1721033653523,10.02161,3356.2,3355.5,0.03499181]
[1721033653947,7.34,3356.2,3355.5,0.03499181]
[1721033655322,2.68175,3356.1,3355.5,0.03499181]
[1721033655632,2.68181,3356.0,3355.5,0.03499181]
[1721033656150,7.34,3356.2,3355.5,0.03499181]
[1721033656752,3.30054594,3356.3,3355.5,0.03499181]
[1721033657258,2.68162,3356.2,3355.5,0.03499181]
[1721033657462,2.68173,3356.1,3355.5,0.03499181]
[1721033657826,4.56453924,3356.3,3355.5,0.03499181]
[1721033658163,3.30054594,3356.3,3355.5,0.03499181]
[1721033658458,0.61899594,3356.4,3355.5,0.03499181]
[1721033658635,3.30038594,3356.5,3355.5,0.03499181]
[1721033658833,0.72460279,3356.4,3355.5,0.03499181]
[1721033659043,0.61899594,3356.4,3355.6,0.71591062]
[1721033659243,0.61899594,3356.4,3355.7,0.55]
[1721033659448,0.61899594,3356.5,3355.9,1.7]
[1721033659660,0.61899594,3356.7,3356.3,1.7]
[1721033659979,7.95899594,3356.9,3356.4,0.03451109]
[1721033660142,9.11584192,3356.9,3356.4,0.03451109]
[1721033660342,9.11584192,3356.9,3356.3,1.7]
[1721033660645,8.49684598,3356.9,3356.3,1.7]
[1721033660860,7.34,3356.9,3356.3,1.7]
[1721033663067,2.68122,3356.7,3355.8,4.1793]
[1721033663276,2.68122,3356.7,3355.9,3.55]
[1721033663478,2.68122,3356.7,3355.9,3.58466242]
[1721033664200,10.02105,3356.9,3355.9,3.58466242]
[1721033664363,10.02105,3356.9,3356.0,0.77639624]
[1721033664751,2.68112,3356.8,3356.1,0.58456113]
[1721033664957,2.68112,3356.8,3356.1,0.03456113]
[1721033664958,2.6812,3356.7,3356.1,0.03456113]
[1721033665153,7.34,3356.9,3356.1,0.03456113]
[1721033665154,2.68149,3356.4,3356.1,0.03456113]
[1721033665359,2.68149,3356.4,3355.8,1.7]
[1721033665670,2.68113,3356.8,3355.8,1.87]
[1721033665875,2.68113,3356.8,3355.9,0.03466242]
[1721033666187,2.68113,3356.8,3355.8,1.87]
[1721033666758,2.68113,3356.8,3355.9,0.55]
[1721033666959,2.68121,3356.7,3355.9,0.55]
[1721033667385,3.951444,3356.7,3356.0,0.03461177]
[1721033667702,2.68148,3356.4,3356.0,0.03461177]
[1721033667913,3.951444,3356.7,3356.0,0.03461177]
[1721033668093,3.951444,3356.7,3355.8,1.7]
[1721033668300,2.68121,3356.7,3356.1,0.03456113]
[1721033668469,2.68129,3356.6,3355.8,1.7]
[1721033668982,2.68129,3356.6,3355.9,0.58466242]
[1721033671206,2.68124,3356.7,3355.9,0.58466242]
[1721033671369,2.68115,3356.8,3355.9,0.58466242]
[1721033671574,2.68115,3356.8,3356.0,0.22846624]
[1721033671768,5.36199,3357.0,3356.1,0.55]
[1721033671973,2.68083,3357.2,3356.1,0.58457245]
[1721033672200,2.68104,3356.9,3356.1,0.58457245]
[1721033672508,2.6815,3356.4,3355.5,1.7]
[1721033672693,2.68162,3356.2,3355.4,1.7]
[1721033672877,2.68168,3356.1,3355.6,0.03482566]
[1721033673087,2.68168,3356.1,3354.8,2.68269]
[1721033673088,2.68177,3356.0,3355.5,0.03487632]
[1721033673294,2.68177,3356.0,3355.7,0.03477501]
[1721033673618,2.68177,3356.0,3355.1,1.7]
[1721033673939,2.68185,3355.9,3355.2,0.47328631]
[1721033674148,2.68185,3355.9,3355.2,0.03502831]
[1721033675252,2.68185,3355.9,3355.2,0.58502831]
[1721033676355,2.68179,3356.0,3355.2,0.58502831]
[1721033677569,10.02133,3356.6,3355.5,3.9763]
[1721033677696,3.71223706,3356.5,3355.6,0.95358994]
[1721033677900,2.68152,3356.3,3355.6,0.95358994]
[1721033678136,2.68152,3356.3,3355.7,0.03481802]
[1721033678449,2.68177,3356.0,3355.7,0.03481802]
[1721033678740,2.68177,3356.0,3355.4,0.55]
[1721033678941,2.68184,3355.9,3355.5,0.03490424]
[1721033679151,2.68184,3355.9,3355.3,3.55]
[1721033679455,2.68184,3355.9,3355.6,0.03485358]
[1721033679612,2.68184,3355.9,3355.3,0.55]
[1721033679828,2.68184,3355.9,3355.7,0.03480293]
[1721033680049,2.68193,3355.8,3355.3,0.55]
[1721033680199,2.68219,3355.5,3354.8,4.7]
[1721033680398,2.68219,3355.5,3354.4,2.4664]
[1721033680399,2.68219,3355.5,3354.9,2.17]
[1721033680629,2.68206,3355.7,3354.9,1.7]
[1721033681040,2.68195,3355.8,3354.9,1.7]
[1721033682043,2.68201,3355.7,3354.9,1.7]
[1721033682244,2.68214,3355.6,3355.0,0.55]
[1721033682447,2.68214,3355.6,3354.9,1.7]
[1721033682943,2.68214,3355.6,3354.9,2.17]
[1721033683148,2.682,3355.7,3355.0,0.55]
[1721033683502,2.68192,3355.8,3355.0,0.55]
[1721033684141,2.68189,3355.9,3355.1,0.09470949]
[1721033684305,3.2991715,3355.9,3355.2,0.83147095]
[1721033684507,2.68192,3355.8,3355.2,0.83147095]
[1721033684746,2.68192,3355.8,3355.3,0.0350637]
[1721033684940,2.68192,3355.8,3355.2,0.55]
[1721033685152,2.68192,3355.8,3355.3,0.0350637]
[1721033685645,2.68192,3355.8,3355.0,0.55]
[1721033685809,2.68192,3355.8,3355.4,0.03501304]
[1721033686136,2.68192,3355.8,3355.5,0.03496238]
[1721033686337,2.68192,3355.8,3355.2,0.55]
[1721033686551,2.68192,3355.8,3355.3,0.0350637]
[1721033686754,2.68184,3355.9,3355.3,0.0350637]
[1721033687072,2.68184,3355.9,3355.3,1.7]
[1721033687278,2.68213,3355.6,3355.3,1.7]
[1721033687569,2.68201,3355.7,3355.4,0.03501304]
[1721033687768,2.68195,3355.8,3355.4,0.03501304]
[1721033687946,3.2991815,3355.9,3355.3,1.7]
[1721033687947,0.6172815,3355.9,3355.3,1.7]
[1721033688132,0.69498603,3355.9,3355.4,0.03501304]
[1721033688333,3.37683603,3355.9,3355.3,1.7]
[1721033688544,0.07770266,3355.8,3355.3,1.7]
[1721033688871,2.68185,3355.9,3355.3,1.7]
[1721033689443,3.2991315,3355.9,3355.3,1.7]
[1721033690322,0.0777012,3355.8,3355.3,1.7]
[1721033690566,0.6172815,3355.9,3355.4,0.03501304]
[1721033690766,0.69498109,3355.9,3355.4,0.03501304]
[1721033690964,2.68178,3356.0,3355.3,1.75960046]
[1721033690965,0.69498109,3355.8,3355.3,1.75960046]
[1721033691143,3.60770225,3356.0,3355.3,1.75960046]
[1721033691144,0.6172815,3356.0,3355.4,0.72946135]
[1721033691344,0.69497958,3356.0,3355.4,0.72946135]
[1721033691669,0.6172815,3355.9,3355.5,0.05959604]
[1721033691872,0.6172815,3356.2,3355.4,0.72946135]
[1721033692078,0.6172815,3356.2,3355.6,0.03491172]
[1721033692368,2.75921201,3356.3,3355.7,0.03486106]
[1721033692369,0.6172815,3356.3,3355.7,0.03486106]
[1721033692589,0.69497686,3356.3,3355.7,1.73486106]
[1721033692737,7.9149815,3356.4,3355.8,0.60959141]
[1721033692931,7.2977,3356.4,3355.9,0.0347741]
[1721033693125,7.2977,3356.4,3355.8,0.60959141]
[1721033693126,7.2977,3356.4,3356.0,0.23443655]
[1721033693334,7.2977,3356.4,3356.1,0.03467281]
[1721033693628,7.9149815,3356.4,3356.0,0.23443655]
[1721033693874,0.07768498,3356.3,3355.8,0.55]
[1721033694075,0.69496848,3356.3,3356.1,0.03467281]